bitfinex/quotes_BTCUSD_20220405
["timestamp","ask_amount","ask_price","bid_price","bid_amount"]
[1649119274457,0.27696175,46471.0,46464.0,0.29748984]
[1649119274658,0.00053174,46469.0,46464.0,0.29748984]
[1649119274757,0.05380763,46468.0,46464.0,0.29748984]
[1649119274858,0.05380763,46468.0,46465.0,0.322618]
[1649119275710,0.05380763,46468.0,46466.0,0.322618]
[1649119275811,0.05380763,46468.0,46465.0,0.322618]
[1649119276254,0.05380763,46468.0,46466.0,0.308685]
[1649119276353,0.05380763,46468.0,46464.0,0.29748984]
[1649119276454,0.05380763,46468.0,46465.0,0.322618]
[1649119276555,0.05380763,46468.0,46462.0,0.1]
[1649119276654,0.05380763,46468.0,46463.0,0.322618]
[1649119276955,0.05380763,46468.0,46464.0,0.308714]
[1649119277056,0.05433938,46468.0,46463.0,0.322618]
[1649119277154,0.05433938,46468.0,46464.0,0.308707]
[1649119277256,0.05433938,46468.0,46462.0,0.1]
[1649119277404,0.05433938,46468.0,46463.0,0.322618]
[1649119277504,0.05433938,46468.0,46462.0,0.1]
[1649119277603,0.05433938,46468.0,46463.0,0.322618]
[1649119277905,0.05433938,46468.0,46462.0,0.1]
[1649119278005,0.05433938,46468.0,46463.0,0.308714]
[1649119278103,0.05380763,46468.0,46463.0,0.308714]
[1649119278306,0.05433938,46468.0,46463.0,0.308714]
[1649119278708,0.00053175,46468.0,46463.0,0.308714]
[1649119279312,0.35722129,46469.0,46463.0,0.308714]
[1649119279559,0.00053175,46468.0,46463.0,0.308714]
[1649119279764,0.00053175,46468.0,46462.0,0.1]
[1649119280065,0.00053175,46468.0,46463.0,0.322618]
[1649119280466,0.35722129,46469.0,46462.0,0.1]
[1649119280764,0.10814886,46468.0,46462.0,0.1]
[1649119280864,0.10814886,46468.0,46463.0,0.322618]
[1649119281065,0.10814886,46468.0,46462.0,0.1]
[1649119281216,0.10814886,46468.0,46463.0,0.322618]
[1649119281315,0.10814886,46468.0,46464.0,0.308714]
[1649119281465,0.10814886,46468.0,46463.0,0.322618]
[1649119281666,0.10761711,46468.0,46463.0,0.322618]
[1649119281766,0.10761711,46468.0,46463.0,0.308714]
[1649119281869,0.10814886,46468.0,46463.0,0.308714]
[1649119282218,0.10814886,46468.0,46464.0,0.322618]
[1649119282315,0.10814886,46468.0,46463.0,0.308714]
[1649119282916,0.10761711,46468.0,46463.0,0.308714]
[1649119283116,0.10814886,46468.0,46463.0,0.308714]
[1649119283317,0.41173594,46468.0,46463.0,0.308714]
[1649119283419,0.41173594,46468.0,46464.0,0.308707]
[1649119283559,0.41173594,46468.0,46463.0,0.322618]
[1649119283664,0.41173594,46468.0,46462.0,0.1]
[1649119283759,0.41173594,46468.0,46463.0,0.322618]
[1649119283859,0.41173594,46468.0,46462.0,0.1]
[1649119283960,0.41173594,46468.0,46463.0,0.308714]
[1649119284109,0.41120419,46468.0,46464.0,0.322617]
[1649119284209,0.41120419,46468.0,46462.0,0.1]
[1649119284310,0.00053175,46467.0,46463.0,0.322618]
[1649119284612,0.22634067,46464.0,46463.0,0.322618]
[1649119284810,0.05,46464.0,46463.0,0.322618]
[1649119284920,0.00053175,46467.0,46463.0,0.322618]
[1649119285011,0.00053175,46467.0,46462.0,0.1]
[1649119285161,0.00053175,46467.0,46463.0,0.308714]
[1649119285260,0.10761711,46468.0,46463.0,0.308714]
[1649119285363,0.10761711,46468.0,46463.0,0.322618]
[1649119285463,0.10761711,46468.0,46462.0,0.1]
[1649119285563,0.00053176,46467.0,46463.0,0.322618]
[1649119286467,0.10761711,46468.0,46463.0,0.322618]
[1649119286769,0.00053175,46467.0,46463.0,0.322618]
[1649119287169,0.28911442,46465.0,46463.0,0.322618]
[1649119287315,0.28911442,46465.0,46464.0,0.322611]
[1649119287316,0.33911442,46465.0,46464.0,0.322611]
[1649119287416,0.33911442,46465.0,46462.0,0.1]
[1649119287516,0.35740048,46464.0,46462.0,0.1]
[1649119287619,0.30358708,46463.0,46462.0,0.1]
[1649119287721,0.35358708,46463.0,46462.0,0.1]
[1649119288017,0.67620508,46463.0,46462.0,0.1]
[1649119288117,0.35358708,46463.0,46462.0,0.1]
[1649119288618,0.60037002,46463.0,46462.0,0.1]
[1649119289119,0.61126498,46463.0,46462.0,0.1]
[1649119289218,0.60037002,46463.0,46462.0,0.1]
[1649119289919,0.60008894,46463.0,46462.0,0.1]
[1649119295662,0.60008894,46463.0,46462.0,0.095]
[1649119296869,0.29650186,46463.0,46462.0,0.095]
[1649119297069,0.60008894,46463.0,46462.0,0.095]
[1649119300161,0.60015243,46463.0,46462.0,0.095]
[1649119302066,0.60008894,46463.0,46462.0,0.095]
[1649119302980,0.92270694,46463.0,46462.0,0.095]
[1649119303180,0.96550694,46463.0,46462.0,0.095]
[1649119303278,1.10727396,46463.0,46462.0,0.095]
[1649119303578,1.15727396,46463.0,46462.0,0.095]
[1649119303980,1.15733734,46463.0,46462.0,0.095]
[1649119304181,0.85375026,46463.0,46462.0,0.095]
[1649119304784,0.71198324,46463.0,46462.0,0.095]
[1649119304929,0.8537587,46463.0,46462.0,0.095]
[1649119305229,1.07048529,46463.0,46462.0,0.095]
[1649119306066,1.07042191,46463.0,46462.0,0.095]
[1649119309415,1.08118191,46463.0,46462.0,0.095]
[1649119309760,1.09207687,46463.0,46462.0,0.095]
[1649119310063,1.09213912,46463.0,46462.0,0.095]
[1649119310163,0.75862616,46463.0,46462.0,0.095]
[1649119310262,0.76952088,46463.0,46462.0,0.095]
[1649119310363,0.75862616,46463.0,46462.0,0.095]
[1649119311068,1.08124416,46463.0,46462.0,0.095]
[1649119311167,0.86451757,46463.0,46462.0,0.095]
[1649119311667,0.54189957,46463.0,46462.0,0.095]
[1649119311918,0.40012411,46463.0,46462.0,0.095]
[1649119312119,0.72274211,46463.0,46462.0,0.095]
[1649119312219,0.40012411,46463.0,46462.0,0.095]
[1649119312321,0.67994211,46463.0,46462.0,0.095]
[1649119312421,0.66918211,46463.0,46462.0,0.095]
[1649119314357,0.97276919,46463.0,46462.0,0.095]
[1649119314459,0.66918211,46463.0,46462.0,0.095]
[1649119314656,0.81096736,46463.0,46462.0,0.095]
[1649119314856,0.66918211,46463.0,46462.0,0.095]
[1649119315310,0.34656411,46463.0,46462.0,0.095]
[1649119315411,0.66918211,46463.0,46462.0,0.095]
[1649119316062,0.66911986,46463.0,46462.0,0.095]
[1649119316162,0.61911986,46463.0,46462.0,0.095]
[1649119317268,0.66911986,46463.0,46462.0,0.095]
[1649119318013,0.66921371,46463.0,46462.0,0.095]
[1649119318516,0.66921371,46463.0,46462.0,0.09488098]
[1649119319065,0.89695229,46463.0,46462.0,0.09488098]
[1649119319164,0.84695229,46463.0,46462.0,0.09488098]
[1649119319766,0.29659571,46463.0,46462.0,0.09488098]
[1649119320174,0.29659571,46463.0,46462.0,0.08627328]
[1649119320266,0.28798653,46463.0,46462.0,0.08627328]
[1649119320816,0.61060453,46463.0,46462.0,0.08627328]
[1649119321521,0.60933944,46463.0,46462.0,0.08627328]
[1649119322075,0.65943325,46463.0,46462.0,0.08627328]
[1649119322926,0.60943325,46463.0,46462.0,0.08627328]
[1649119323025,0.28681525,46463.0,46462.0,0.08627328]
[1649119323125,0.60943325,46463.0,46462.0,0.08627328]
[1649119323626,0.28681525,46463.0,46462.0,0.08627328]
[1649119323726,0.60943325,46463.0,46462.0,0.08627328]
[1649119323876,0.6095028,46463.0,46462.0,0.08627328]
[1649119324784,0.2868848,46463.0,46462.0,0.08627328]
[1649119324885,0.2866838,46463.0,46462.0,0.08627328]
[1649119325387,0.6093018,46463.0,46462.0,0.08627328]
[1649119326091,0.60946516,46463.0,46462.0,0.08627328]
[1649119328244,0.6093018,46463.0,46462.0,0.08627328]
[1649119328814,0.2866838,46463.0,46462.0,0.08627328]
[1649119329015,0.03990086,46463.0,46462.0,0.08627328]
[1649119329216,0.0538134,46464.0,46462.0,0.08627328]
[1649119329320,0.05,46463.0,46462.0,0.08627328]
[1649119329417,0.0538134,46464.0,46462.0,0.08627328]
[1649119333620,0.05373296,46464.0,46462.0,0.08627328]
[1649119334622,0.004,46469.0,46463.0,0.30358708]
[1649119334724,0.00056512,46465.0,46463.0,0.33499904]
[1649119334825,0.00056512,46465.0,46464.0,0.62620508]
[1649119334923,0.00056512,46465.0,46464.0,0.308708]
[1649119335172,0.00056512,46465.0,46462.0,0.08627328]
[1649119335271,0.00056512,46465.0,46463.0,0.322618]
[1649119335573,0.00056512,46465.0,46462.0,0.08627328]
[1649119335671,0.00056512,46465.0,46463.0,0.322618]
[1649119335822,0.05381022,46468.0,46462.0,0.08627328]
[1649119336061,0.00056512,46466.0,46462.0,0.08627328]
[1649119336763,0.10818697,46466.0,46462.0,0.08627328]
[1649119336962,0.10762185,46466.0,46462.0,0.08627328]
[1649119337262,0.10818697,46466.0,46462.0,0.08627328]
[1649119337764,0.16199718,46466.0,46462.0,0.08627328]
[1649119337916,0.16199718,46466.0,46463.0,0.322618]
[1649119338023,0.16199718,46466.0,46462.0,0.08627328]
[1649119338117,0.21143206,46466.0,46463.0,0.322618]
[1649119338365,0.21143206,46466.0,46464.0,0.308715]
[1649119338464,0.21143206,46466.0,46463.0,0.322618]
[1649119338966,0.21143206,46466.0,46464.0,0.322618]
[1649119339065,0.21143206,46466.0,46462.0,0.08627328]
[1649119339165,0.21143206,46466.0,46463.0,0.322618]
[1649119339270,0.21143206,46466.0,46463.0,0.59989714]
[1649119339466,0.21143206,46466.0,46464.0,0.308715]
[1649119339564,0.21143206,46466.0,46464.0,0.322618]
[1649119339665,0.21199718,46466.0,46464.0,0.322618]
[1649119339914,0.21199718,46466.0,46463.0,0.27727914]
[1649119340014,0.21199718,46466.0,46464.0,0.322618]
[1649119340413,0.21199718,46466.0,46463.0,0.27727914]
[1649119340565,0.21143206,46466.0,46463.0,0.27727914]
[1649119341066,0.63888515,46465.0,46463.0,0.322618]
[1649119350082,0.63894843,46465.0,46463.0,0.322618]
[1649119352013,0.63888515,46465.0,46463.0,0.322618]
[1649119353867,0.63888515,46465.0,46463.0,0.32250903]
[1649119354268,0.63888515,46465.0,46462.0,0.08627328]
[1649119354467,0.63888515,46465.0,46463.0,0.322622]
[1649119354566,0.63888515,46465.0,46462.0,0.08627328]
[1649119354885,0.09100026,46463.0,46462.0,0.08627328]
[1649119354984,0.01089519,46463.0,46462.0,0.08627328]
[1649119355887,0.06471819,46463.0,46462.0,0.08627328]
[1649119355991,0.14176524,46464.0,46462.0,0.08627328]
[1649119356089,0.68888515,46465.0,46462.0,0.08627328]
[1649119356188,0.05381448,46464.0,46462.0,0.08627328]
[1649119356288,0.19557972,46464.0,46462.0,0.08627328]
[1649119356437,0.05381448,46464.0,46462.0,0.08627328]
[1649119356641,0.19557972,46464.0,46462.0,0.08627328]
[1649119356942,0.05381448,46464.0,46462.0,0.08627328]
[1649119357143,0.19557972,46464.0,46462.0,0.08627328]
[1649119357344,0.05381448,46464.0,46462.0,0.08627328]
[1649119357545,0.19557972,46464.0,46462.0,0.08627328]
[1649119357744,0.05381448,46464.0,46462.0,0.08627328]
[1649119357994,0.19557972,46464.0,46462.0,0.08627328]
[1649119358394,0.05381448,46464.0,46462.0,0.08627328]
[1649119362962,0.05374434,46464.0,46462.0,0.08627328]
[1649119364267,0.05374434,46464.0,46454.0,0.001]
[1649119364372,0.10756234,46464.0,46454.0,0.001]
[1649119364472,0.26168274,46456.0,46454.0,0.001]
[1649119364568,0.26168274,46456.0,46455.0,0.322622]
[1649119364669,0.31168274,46456.0,46455.0,0.322622]
[1649119367663,0.05381774,46458.0,46455.0,0.322622]
[1649119369362,0.31103779,46458.0,46455.0,0.322622]
[1649119369661,0.36103779,46458.0,46455.0,0.322622]
[1649119371642,0.10381774,46458.0,46455.0,0.322622]
[1649119371842,0.05381774,46458.0,46455.0,0.322622]
[1649119373294,0.3080831,46457.0,46455.0,0.322622]
[1649119373522,0.3580831,46457.0,46455.0,0.322622]
[1649119373915,0.05,46457.0,46455.0,0.322622]
[1649119374016,0.10381774,46458.0,46455.0,0.322622]
[1649119374119,0.05381774,46458.0,46455.0,0.322622]
[1649119374215,0.05,46457.0,46455.0,0.322622]
[1649119374467,0.05381774,46458.0,46455.0,0.322622]
[1649119375768,0.30710936,46457.0,46455.0,0.322622]
[1649119376069,0.05381774,46458.0,46455.0,0.322622]
[1649119376168,0.05381774,46458.0,46454.0,0.001]
[1649119376273,0.05381774,46458.0,46455.0,0.322622]
[1649119376368,0.05381774,46458.0,46454.0,0.001]
[1649119376469,0.05381774,46458.0,46455.0,0.322622]
[1649119376569,0.05381774,46458.0,46456.0,0.30872]
[1649119376670,0.05381774,46458.0,46454.0,0.001]
[1649119376821,0.05381774,46458.0,46455.0,0.322622]
[1649119377021,0.05381774,46458.0,46456.0,0.322622]
[1649119377121,0.35110111,46458.0,46454.0,0.001]
[1649119377266,0.05381774,46458.0,46455.0,0.30872]
[1649119378121,0.05381774,46458.0,46454.0,0.001]
[1649119378122,0.30358708,46457.0,46454.0,0.001]
[1649119378221,0.053827,46456.0,46454.0,0.001]
[1649119378325,0.30358708,46455.0,46454.0,0.001]
[1649119378719,0.57473675,46455.0,46454.0,0.001]
[1649119378969,0.27114967,46455.0,46454.0,0.001]
[1649119379169,0.32114967,46455.0,46454.0,0.001]
[1649119380227,0.32114967,46455.0,46445.0,0.322622]
[1649119380228,0.31346742,46448.0,46445.0,0.322622]
[1649119380372,0.053832,46451.0,46449.0,0.1678638]
[1649119381242,0.053832,46451.0,46450.0,0.322622]
[1649119381446,0.053832,46451.0,46449.0,0.1678638]
[1649119381643,0.0538316,46451.0,46449.0,0.1678638]
[1649119381743,0.0538316,46451.0,46450.0,0.322622]
[1649119382043,0.0538316,46451.0,46449.0,0.1678638]
[1649119382145,0.0538316,46451.0,46450.0,0.322622]
[1649119382448,0.05,46455.0,46450.0,0.322622]
[1649119382546,0.003,46456.0,46450.0,0.62122706]
[1649119382748,0.00324735,46456.0,46450.0,0.62122706]
[1649119383098,0.00024735,46456.0,46450.0,0.360422]
[1649119383248,0.00024735,46456.0,46451.0,0.3062095]
[1649119383348,0.00024735,46456.0,46452.0,0.50017812]
[1649119383449,0.00024735,46456.0,46452.0,0.308786]
[1649119383798,0.001,46461.0,46452.0,0.308786]
[1649119383901,0.00024736,46456.0,46453.0,0.30360506]
[1649119383997,0.00024736,46456.0,46454.0,0.317589]
[1649119384348,0.00024736,46456.0,46455.0,0.22804294]
[1649119384449,0.00024736,46456.0,46455.0,0.53680794]
[1649119384964,0.001,46461.0,46455.0,0.53680794]
[1649119385116,0.2342,46464.0,46456.0,0.30360506]
[1649119385216,0.2342,46464.0,46460.0,0.28371124]
[1649119385415,0.05,46464.0,46460.0,0.28371124]
[1649119385516,0.63888515,46465.0,46460.0,0.28371124]
[1649119385616,0.68888515,46465.0,46460.0,0.28371124]
[1649119386016,0.63888515,46465.0,46460.0,0.28371124]
[1649119386421,0.63948842,46465.0,46460.0,0.28371124]
[1649119387217,0.69329618,46465.0,46460.0,0.28371124]
[1649119387317,0.69269291,46465.0,46460.0,0.28371124]
[1649119387669,0.69329618,46465.0,46460.0,0.28371124]
[1649119388418,8.995e-05,46464.0,46460.0,0.28371124]
[1649119389222,8.995e-05,46464.0,46461.0,0.303604]
[1649119389324,8.995e-05,46464.0,46460.0,0.28371124]
[1649119389475,8.995e-05,46464.0,46461.0,0.322653]
[1649119389572,8.995e-05,46464.0,46460.0,0.28371124]
[1649119390323,8.995e-05,46464.0,46461.0,0.322653]
[1649119390424,8.995e-05,46464.0,46460.0,0.28371124]
[1649119390525,8.995e-05,46464.0,46461.0,0.322653]
[1649119390674,8.995e-05,46464.0,46460.0,0.28371124]
[1649119391178,0.00067474,46464.0,46460.0,0.28371124]
[1649119391275,0.00067474,46464.0,46461.0,0.322653]
[1649119392127,6.331e-05,46463.0,46461.0,0.322653]
[1649119393122,6.331e-05,46463.0,46462.0,0.21750962]
[1649119393223,6.331e-05,46463.0,46462.0,0.303597]
[1649119393925,6.331e-05,46463.0,46460.0,0.28371124]
[1649119394027,6.331e-05,46463.0,46461.0,0.303604]
[1649119394124,6.331e-05,46463.0,46460.0,0.28371124]
[1649119394227,0.28137628,46462.0,46461.0,0.322653]
[1649119394327,0.28137628,46462.0,46461.0,0.303604]
[1649119394426,0.28137628,46462.0,46456.0,0.15]
[1649119394525,0.28137628,46462.0,46457.0,0.322653]
[1649119395379,0.28137628,46462.0,46457.0,0.58621063]
[1649119395477,9.00006331,46463.0,46457.0,0.58621063]
[1649119396022,0.00056338,46462.0,46457.0,0.58621063]
[1649119396264,0.00056338,46462.0,46457.0,0.63621063]
[1649119396366,0.00056338,46462.0,46457.0,0.76762711]
[1649119396465,0.23562407,46462.0,46457.0,0.76762711]
[1649119396966,0.23506069,46462.0,46457.0,0.76762711]
[1649119397168,0.23562552,46462.0,46457.0,0.76762711]
[1649119397268,0.00056483,46462.0,46457.0,0.76762711]
[1649119397970,0.00065446,46462.0,46457.0,0.76762711]
[1649119398169,8.963e-05,46462.0,46457.0,0.76762711]
[1649119398472,0.00065446,46462.0,46457.0,0.76762711]
[1649119398872,0.00065446,46462.0,46459.0,0.303648]
[1649119398989,0.00065446,46462.0,46461.0,0.322624]
[1649119399133,0.00065446,46462.0,46461.0,1.021524]
[1649119399325,8.963e-05,46462.0,46461.0,3.17601148]
[1649119399424,8.963e-05,46462.0,46461.0,3.46336512]
[1649119399770,8.963e-05,46462.0,46461.0,3.17601148]
[1649119399975,8.963e-05,46462.0,46461.0,3.25501122]
[1649119400575,8.963e-05,46462.0,46461.0,2.59891122]
[1649119401222,8.963e-05,46462.0,46461.0,3.25501122]
[1649119401776,8.963e-05,46462.0,46461.0,2.59891122]
[1649119402374,0.00015688,46462.0,46461.0,2.51991148]
[1649119402475,0.00015688,46462.0,46461.0,2.530798]
[1649119402575,0.00015688,46462.0,46461.0,3.186898]
[1649119402677,0.00015688,46462.0,46461.0,3.286898]
[1649119403326,0.00015688,46462.0,46461.0,3.27601148]
[1649119403425,0.00015688,46462.0,46461.0,3.28689659]
[1649119403762,0.00015688,46462.0,46461.0,3.27601148]
[1649119404061,0.00022537,46462.0,46461.0,3.27601148]
[1649119404961,0.00022537,46462.0,46461.0,2.61991148]
[1649119405463,0.00022537,46462.0,46461.0,3.27601148]
[1649119405563,0.00022537,46462.0,46461.0,2.61991148]
[1649119406515,0.00022537,46462.0,46461.0,2.6198374]
[1649119407016,0.00022537,46462.0,46461.0,2.5770374]
[1649119410375,8.52776752,46463.0,46461.0,2.5770374]
[1649119411118,8.52776752,46463.0,46461.0,2.6308364]
[1649119411321,8.52776752,46463.0,46462.0,0.30663354]
[1649119411419,8.52776752,46463.0,46462.0,0.33503882]
[1649119411520,8.52776752,46463.0,46462.0,0.43503882]
[1649119413475,8.52776752,46463.0,46462.0,1.09113882]
[1649119413574,8.52776752,46463.0,46462.0,1.17013856]
[1649119413724,8.52776752,46463.0,46462.0,1.09113882]
[1649119414326,8.52776752,46463.0,46462.0,1.39777236]
[1649119414937,8.52776752,46463.0,46462.0,1.44057236]
[1649119415039,8.52776752,46463.0,46462.0,2.46462956]
[1649119415539,8.52776752,46463.0,46462.0,2.51462956]
[1649119415639,8.52776752,46463.0,46462.0,2.62221356]
[1649119416137,8.52776752,46463.0,46462.0,2.57221356]
[1649119416338,8.52776752,46463.0,46462.0,2.62221356]
[1649119418092,8.52776752,46463.0,46462.0,1.96611356]
[1649119418193,8.52776752,46463.0,46462.0,1.85852956]
[1649119418396,8.52776752,46463.0,46462.0,1.81572956]
[1649119421474,8.52776752,46463.0,46462.0,1.81072956]
[1649119422319,8.52776752,46463.0,46462.0,2.46682956]
[1649119424025,8.52776752,46463.0,46462.0,1.81072956]
[1649119424125,8.52776752,46463.0,46462.0,2.46682956]
[1649119424277,8.52776752,46463.0,46462.0,1.81072956]
[1649119426270,8.52776752,46463.0,46462.0,2.46682956]
[1649119426870,8.52776752,46463.0,46462.0,2.52062656]
[1649119427227,8.52776752,46463.0,46462.0,2.87062656]
[1649119430620,7.70290419,46463.0,46462.0,2.87062656]
[1649119430818,7.70290419,46463.0,46462.0,2.91342656]
[1649119433322,7.70290419,46463.0,46462.0,2.9243132]
[1649119433323,7.58742251,46463.0,46462.0,2.9243132]
[1649119433567,7.58742251,46463.0,46462.0,2.9743132]
[1649119437167,7.58742251,46463.0,46462.0,2.9243132]
[1649119437374,7.28081867,46463.0,46462.0,2.9243132]
[1649119437675,7.15263401,46463.0,46462.0,2.9243132]
[1649119437976,7.15263401,46463.0,46462.0,2.9743132]
[1649119438077,7.15263401,46463.0,46462.0,3.15133663]
[1649119438728,7.15263401,46463.0,46462.0,2.9743132]
[1649119438929,7.15263401,46463.0,46462.0,3.15133663]
[1649119439786,7.15263401,46463.0,46462.0,2.9743132]
[1649119440090,7.15263401,46463.0,46462.0,3.15133663]
[1649119440186,7.15263401,46463.0,46462.0,3.14272772]
[1649119440287,7.14402501,46463.0,46462.0,3.14272772]
[1649119440488,6.49667088,46463.0,46462.0,3.14272772]
[1649119440589,6.22990821,46463.0,46462.0,3.13184108]
[1649119440691,6.20742756,46463.0,46462.0,3.14272596]
[1649119440787,5.97357717,46463.0,46462.0,3.14272596]
[1649119441332,5.95789254,46463.0,46462.0,5.29721344]
[1649119441432,5.88753178,46463.0,46462.0,5.29721204]
[1649119441532,5.88753178,46463.0,46462.0,5.12018861]
[1649119442031,5.88753178,46463.0,46462.0,5.67259074]
[1649119442136,5.26413895,46463.0,46462.0,5.45130232]
[1649119442332,5.25235823,46463.0,46462.0,5.45130232]
[1649119442536,5.16981857,46463.0,46462.0,5.45130232]
[1649119442636,5.14510274,46463.0,46462.0,5.98660232]
[1649119443288,5.14510274,46463.0,46462.0,7.22851331]
[1649119443485,5.14510274,46463.0,46462.0,7.23169331]
[1649119443584,5.14510274,46463.0,46462.0,7.49723942]
[1649119443686,5.1177902,46463.0,46462.0,7.49723942]
[1649119444285,4.78502699,46463.0,46462.0,7.69723942]
[1649119444489,4.76405651,46463.0,46462.0,7.69723942]
[1649119444685,4.75241146,46463.0,46462.0,7.69723942]
[1649119444921,4.73624148,46463.0,46462.0,7.69723942]
[1649119445126,4.72422767,46463.0,46462.0,7.69723942]
[1649119445222,4.72422767,46463.0,46462.0,8.19723942]
[1649119445325,4.6530198,46463.0,46462.0,8.19723942]
[1649119445572,4.59923408,46463.0,46462.0,7.93169331]
[1649119446726,4.59923408,46463.0,46462.0,8.19719165]
[1649119446825,4.59923408,46463.0,46462.0,8.69719165]
[1649119447225,4.59923408,46463.0,46462.0,8.49719165]
[1649119447325,4.5345847,46463.0,46462.0,8.43169331]
[1649119448079,4.5345847,46463.0,46462.0,8.69719165]
[1649119448178,4.5345847,46463.0,46462.0,8.80449165]
[1649119448279,4.5345847,46463.0,46462.0,8.53899331]
[1649119448379,4.5345847,46463.0,46462.0,8.80449165]
[1649119448518,4.5345847,46463.0,46462.0,8.53899331]
[1649119448620,4.5345847,46463.0,46462.0,8.80449165]
[1649119448717,4.5345847,46463.0,46462.0,8.53899331]
[1649119449321,4.50959646,46463.0,46462.0,8.53899331]
[1649119449421,4.42696376,46463.0,46462.0,8.53899331]
[1649119449518,2.32711845,46463.0,46462.0,8.53899331]
[1649119449621,2.00432022,46463.0,46462.0,8.53899331]
[1649119449718,1.9621344,46463.0,46462.0,9.29159093]
[1649119450020,1.9621344,46463.0,46462.0,8.53899331]
[1649119450122,1.9621344,46463.0,46462.0,9.29159002]
[1649119450229,1.94907101,46463.0,46462.0,9.29159002]
[1649119450320,1.71611209,46463.0,46462.0,8.93576442]
[1649119450423,1.30800066,46463.0,46462.0,9.67747671]
[1649119450523,1.30800066,46463.0,46462.0,9.87306511]
[1649119450722,1.29538736,46463.0,46462.0,9.87306511]
[1649119451021,0.97449936,46463.0,46462.0,9.87306511]
[1649119451121,0.97449936,46463.0,46462.0,9.476294]
[1649119451224,0.96301656,46463.0,46462.0,9.476294]
[1649119451325,0.91734162,46463.0,46462.0,9.476294]
[1649119451623,0.61031262,46463.0,46462.0,9.4762899]
[1649119452022,0.4615854,46463.0,46462.0,9.4762899]
[1649119452128,0.19787812,46486.0,46466.0,0.6561]
[1649119452282,0.1884,46487.0,46481.0,0.322396]
[1649119452378,0.7467,46492.0,46481.0,0.65379688]
[1649119452482,0.2,46499.0,46481.0,0.65379688]
[1649119452483,0.01075,46491.0,46481.0,0.49659688]
[1649119452579,0.2828,46499.0,46481.0,0.49659688]
[1649119452880,0.14034449,46498.0,46481.0,0.49659688]
[1649119453229,0.14034449,46498.0,46481.0,0.77688094]
[1649119453530,0.14034449,46498.0,46481.0,1.07688094]
[1649119453733,0.13534449,46498.0,46481.0,1.07688094]
[1649119453831,0.00024736,46492.0,46482.0,0.053773]
[1649119453933,0.00024736,46492.0,46483.0,0.30348]
[1649119454131,0.00024736,46492.0,46483.0,0.40348]
[1649119454332,0.27882756,46491.0,46483.0,0.40348]
[1649119454832,0.00056455,46489.0,46483.0,0.40348]
[1649119455684,0.00056455,46489.0,46484.0,0.3]
[1649119455784,0.01075,46498.0,46485.0,0.322364]
[1649119455884,0.001,46494.0,46485.0,0.322364]
[1649119456026,0.00056456,46488.0,46485.0,0.322364]
[1649119456523,0.00056456,46488.0,46485.0,0.422364]
[1649119457026,0.001,46494.0,46485.0,0.422364]
[1649119457225,0.00056455,46489.0,46485.0,0.422364]
[1649119458176,0.01075,46498.0,46485.0,0.422364]
[1649119458275,0.3328,46499.0,46485.0,0.422364]
[1649119458375,0.01075,46498.0,46485.0,0.422364]
[1649119458476,0.00056453,46489.0,46485.0,0.422364]
[1649119458579,0.00056453,46489.0,46485.0,0.476133]
[1649119459078,0.00056453,46489.0,46485.0,0.526133]
[1649119459177,0.00056453,46489.0,46485.0,1.182233]
[1649119459378,0.2328,46499.0,46485.0,1.182233]
[1649119459577,0.00056453,46489.0,46485.0,1.182233]
[1649119460575,0.27166778,46495.0,46485.0,1.182233]
[1649119460772,0.00056453,46489.0,46485.0,1.182233]
[1649119461723,0.01300769,46498.0,46485.0,1.182233]
[1649119461824,0.01075,46498.0,46485.0,1.182233]
[1649119461923,0.0328,46499.0,46485.0,1.182233]
[1649119462024,0.00024737,46489.0,46485.0,1.182233]
[1649119462927,0.0009893,46498.0,46485.0,1.182233]
[1649119463033,0.0328,46499.0,46485.0,1.182233]
[1649119463227,0.00024737,46489.0,46485.0,1.182233]
[1649119464230,0.0328,46499.0,46485.0,1.182233]
[1649119464329,0.0328,46499.0,46489.0,0.053766]
[1649119464430,0.00241362,46498.0,46490.0,0.303434]
[1649119464633,0.00241362,46498.0,46490.0,0.403434]
[1649119464634,0.30377029,46496.0,46490.0,0.403434]
[1649119464933,0.01316362,46498.0,46490.0,0.403434]
[1649119465133,0.00241362,46498.0,46490.0,0.403434]
[1649119465434,0.0328,46499.0,46490.0,0.403434]
[1649119465538,0.03244829,46499.0,46490.0,0.403434]
[1649119465635,0.00060346,46496.0,46490.0,0.403434]
[1649119465936,0.28389772,46496.0,46490.0,0.403434]
[1649119466388,0.00060346,46496.0,46490.0,0.403434]
[1649119466590,0.01075,46498.0,46490.0,0.403434]
[1649119466743,0.03244829,46499.0,46490.0,0.403434]
[1649119466842,0.00060347,46495.0,46490.0,0.403434]
[1649119467772,0.49524815,46500.0,46490.0,0.403434]
[1649119467870,0.01075,46499.0,46490.0,0.403434]
[1649119467972,0.00060348,46495.0,46490.0,0.403434]
[1649119469024,0.28877803,46496.0,46490.0,0.403434]
[1649119469225,0.00058499,46495.0,46490.0,0.403434]
[1649119469728,0.00058499,46495.0,46490.0,0.453434]
[1649119470129,0.01075,46499.0,46490.0,0.453434]
[1649119470232,0.49524815,46500.0,46490.0,0.453434]
[1649119470329,0.25692278,46497.0,46490.0,0.753434]
[1649119470430,0.00058499,46495.0,46490.0,0.753434]
[1649119470829,0.70721343,46494.0,46490.0,0.453434]
[1649119471677,0.70779842,46494.0,46490.0,0.453434]
[1649119471775,0.99280948,46494.0,46490.0,0.453434]
[1649119471977,0.70779842,46494.0,46490.0,0.453434]
[1649119472628,0.70721343,46494.0,46490.0,0.453434]
[1649119472827,0.70777699,46494.0,46490.0,0.453434]
[1649119473030,1.00419266,46494.0,46490.0,0.453434]
[1649119473329,0.70777699,46494.0,46490.0,0.453434]
[1649119473732,0.70777699,46494.0,46490.0,1.109534]
[1649119473834,0.70721343,46494.0,46490.0,1.109534]
[1649119475276,0.70777661,46494.0,46490.0,1.109534]
[1649119476231,0.70721343,46494.0,46490.0,1.109534]
[1649119476431,0.70779515,46494.0,46490.0,1.109534]
[1649119476632,0.70779515,46494.0,46491.0,0.6989]
[1649119476732,0.70779515,46494.0,46492.0,0.322307]
[1649119476833,0.70779515,46494.0,46493.0,0.053763]
[1649119476982,0.70779515,46494.0,46493.0,0.357179]
[1649119477281,0.70779515,46494.0,46493.0,0.457179]
[1649119477381,0.70721343,46494.0,46493.0,0.457179]
[1649119482378,0.70721343,46494.0,46493.0,0.507179]
[1649119484681,0.23501565,46494.0,46493.0,0.507179]
[1649119486069,0.23501565,46494.0,46493.0,0.807179]